bitfinex-derivatives/quotes_ETHF0:USTF0_20230401
["timestamp","ask_amount","ask_price","bid_price","bid_amount"]
[1680376851064,1.103,1812.1,1811.8,4.2078]
[1680376851374,1.103,1812.1,1812.0,3.2078]
[1680376851879,1.103,1812.1,1812.0,10.40246503]
[1680376852278,1.103,1812.1,1812.0,9.40246503]
[1680376853477,1.22638208,1812.1,1812.0,9.40246503]
[1680376856970,0.12338208,1812.1,1812.0,9.40246503]
[1680376857379,1.097,1812.2,1812.0,9.40246503]
[1680376858077,1.097,1812.2,1812.1,1.0]
[1680376859482,1.097,1812.2,1812.0,9.40246503]
[1680376859776,1.097,1812.2,1812.1,1.0]
[1680376860082,1.097,1812.2,1812.0,9.40246503]
[1680376860990,1.097,1812.2,1812.1,1.0]
[1680376861376,1.097,1812.2,1812.0,9.40246503]
[1680376863579,1.103,1812.1,1812.0,6.19466503]
[1680376863780,1.6800407,1812.1,1812.0,6.19466503]
[1680376864081,1.098,1812.0,1811.8,3.2078]
[1680376864281,1.103,1811.9,1811.8,3.2078]
[1680376868493,1.24496351,1811.9,1811.8,3.2078]
[1680376869299,1.24496351,1811.9,1811.8,4.07491987]
[1680376870100,1.24496351,1811.9,1811.8,3.2078]
[1680376871711,1.24496351,1811.9,1811.8,4.07506243]
[1680376872008,1.24496351,1811.9,1811.8,3.2078]
[1680376873999,1.24496351,1811.9,1811.8,4.35795519]
[1680376874602,1.24496351,1811.9,1811.8,3.2078]
[1680376875611,1.82200421,1811.9,1811.8,0.86751153]
[1680376875816,4.20952457,1811.9,1811.7,0.86751153]
[1680376876005,1.66868634,1811.8,1811.7,0.86751153]
[1680376876208,2.66868634,1811.8,1811.7,0.86751153]
[1680376877917,2.092,1811.8,1811.7,0.86751153]
[1680376878507,1.092,1811.8,1811.7,0.86751153]
[1680376879009,2.092,1811.8,1811.7,0.86751153]
[1680376880013,2.0891114,1811.8,1811.7,0.86751153]
[1680376880612,2.0891114,1811.8,1811.6,0.86751153]
[1680376880806,1.092,1811.7,1811.6,0.86751153]
[1680376883411,1.23401569,1811.7,1811.6,0.86751153]
[1680376884012,1.23401569,1811.7,1811.6,4.07531153]
[1680376884216,1.23401569,1811.7,1811.6,4.2078]
[1680376884419,1.23401569,1811.7,1811.6,5.07453784]
[1680376885320,1.23401569,1811.7,1811.6,4.07453784]
[1680376892330,1.23401569,1811.7,1811.6,10.031151]
[1680376895329,1.23401569,1811.7,1811.6,6.823351]
[1680376896925,1.24501569,1811.7,1811.6,6.823351]
[1680376897519,0.96401569,1811.7,1811.6,6.823351]
[1680376899435,0.96401569,1811.7,1811.6,10.031151]
[1680376900334,0.96401569,1811.7,1811.6,9.16441316]
[1680376900932,0.96401569,1811.7,1811.6,10.03144324]
[1680376901431,0.96401569,1811.7,1811.6,9.16441316]
[1680376902034,0.96401569,1811.7,1811.6,10.31456835]
[1680376906932,0.14201569,1811.7,1811.6,10.31456835]
[1680376907236,0.14201569,1811.7,1811.6,10.60056687]
[1680376907633,0.828,1811.8,1811.6,10.60056687]
[1680376907941,0.828,1811.8,1811.7,1.0]
[1680376910834,0.57668634,1812.0,1811.7,14.5372053]
[1680376911033,0.57668634,1812.1,1811.9,5.18893942]
[1680376911233,0.57668634,1812.2,1812.0,2.98513942]
[1680376911436,0.57668634,1812.2,1812.1,3.2078]
[1680376911737,0.57668634,1812.2,1812.1,5.36493942]
[1680376911939,0.57668634,1812.2,1812.1,11.39883326]
[1680376912737,1.4422474,1812.3,1812.1,11.10904253]
[1680376912944,0.57668634,1812.3,1812.2,1.0]
[1680376913330,0.57668634,1812.3,1812.2,6.7867216]
[1680376913533,0.96581675,1812.3,1812.2,6.7867216]
[1680376913740,1.54279165,1812.3,1812.2,6.7867216]
[1680376914541,1.54279209,1812.3,1812.2,7.36496177]
[1680376914748,0.67723103,1812.3,1812.2,7.36496177]
[1680376915648,0.67723103,1812.3,1812.2,9.06031046]
[1680376915847,0.10025569,1812.3,1812.2,8.48207029]
[1680376916339,0.57697534,1812.4,1812.2,8.48207029]
[1680376916539,1.4425364,1812.5,1812.3,3.78576589]
[1680376916744,0.57697534,1812.5,1812.4,1.0]
[1680376916944,0.57697534,1812.5,1812.4,7.99052713]
[1680376917143,1.15408141,1812.7,1812.4,7.99052713]
[1680376917144,0.57655164,1812.7,1812.5,1.821]
[1680376917343,0.57655164,1812.8,1812.6,5.61035655]
[1680376917542,0.57658764,1812.8,1812.7,0.828]
[1680376917748,0.57658764,1812.8,1812.7,1.828]
[1680376918150,1.4421487,1812.9,1812.7,3.22655655]
[1680376918350,0.57658764,1813.0,1812.8,4.60535655]
[1680376918542,0.86556106,1813.1,1812.8,4.0298]
[1680376918543,0.57658764,1813.1,1812.8,4.0298]
[1680376918741,0.57658764,1813.1,1813.0,3.2078]
[1680376918945,0.57658764,1813.1,1813.0,4.2078]
[1680376919253,0.57658764,1813.1,1813.0,9.97430799]
[1680376919553,0.57658764,1813.1,1813.0,8.97430799]
[1680376921344,1.39658764,1813.1,1813.0,8.97430799]
[1680376921552,1.39658764,1813.1,1813.0,5.76650799]
[1680376922555,1.67458764,1813.1,1813.0,5.76650799]
[1680376923453,1.098,1813.1,1813.0,5.76650799]
[1680376928157,0.57658764,1813.3,1813.0,5.76650799]
[1680376928158,1.67958764,1813.3,1813.0,5.76650799]
[1680376928459,0.0338049,1813.2,1812.9,3.64405935]
[1680376928659,0.0338049,1813.2,1813.0,1.0]
[1680376929057,0.0338049,1813.2,1813.1,5.80933761]
[1680376931455,1.0338049,1813.2,1813.1,5.80933761]
[1680376931659,2.1368049,1813.2,1813.1,5.80933761]
[1680376931853,1.1368049,1813.2,1813.1,5.80933761]
[1680376932561,1.1368049,1813.2,1812.9,3.2078]
[1680376934660,1.0,1813.1,1812.9,3.2078]
[1680376936963,1.103,1813.0,1812.9,3.2078]
[1680376940554,1.103,1813.0,1812.7,3.2078]
[1680376941366,1.103,1813.0,1812.8,6.32148849]
[1680376943565,0.04424204,1812.9,1812.8,6.32148849]
[1680376946973,1.14724204,1812.9,1812.8,6.32148849]
[1680376949076,1.14724204,1812.9,1812.8,7.32148849]
[1680376950571,1.14724204,1812.9,1812.8,6.32148849]
[1680376956572,1.71682968,1812.9,1812.6,0.57755655]
[1680376956775,1.092,1812.8,1812.6,0.57755655]
[1680376956983,1.092,1812.8,1812.6,3.78535655]
[1680376957279,1.092,1812.8,1812.7,6.05996555]
[1680376958587,1.15945705,1812.8,1812.7,6.05996555]
[1680376958787,1.73604469,1812.8,1812.7,6.05996555]
[1680376959789,1.73604469,1812.8,1812.7,7.05996555]
[1680376959790,0.64404469,1812.8,1812.7,7.05996555]
[1680376960089,0.64404469,1812.8,1812.7,7.6375221]
[1680376960391,0.64404469,1812.8,1812.7,6.6375221]
[1680376960578,1.50960575,1812.8,1812.7,6.6375221]
[1680376961089,0.93301811,1812.8,1812.7,6.6375221]
[1680376962485,0.06745705,1812.8,1812.7,6.92630038]
[1680376964594,0.06745705,1812.8,1812.7,7.92630038]
[1680376964792,0.93449946,1812.8,1812.7,7.92630038]
[1680376966395,0.93449946,1812.8,1812.7,6.92630038]
[1680376967095,0.93449946,1812.8,1812.7,7.92630038]
[1680376967394,0.93449946,1812.8,1812.7,6.92630038]
[1680376969894,0.06745705,1812.8,1812.7,6.92630038]
[1680376973403,0.06745705,1812.8,1812.7,10.13410038]
[1680376973604,1.22153846,1812.8,1812.7,10.13410038]
[1680376987012,2.31753846,1812.8,1812.7,10.13410038]
[1680376987516,2.04853846,1812.8,1812.7,10.13410038]
[1680376988320,1.22153846,1812.8,1812.7,10.13410038]
[1680376989015,1.22153846,1812.8,1812.7,9.26776555]
[1680376989203,1.22153846,1812.8,1812.7,10.13599634]
[1680376995620,1.22153846,1812.8,1812.7,9.26776555]
[1680376995917,1.22153846,1812.8,1812.7,9.2619295]
[1680376999119,1.22153846,1812.8,1812.7,10.41906892]
[1680377006616,1.22153846,1812.8,1812.7,9.2619295]
[1680377006817,1.22153846,1812.8,1812.7,10.13040073]
[1680377007021,2.34027038,1812.8,1812.7,0.86847123]
[1680377007324,3.02439806,1812.8,1812.7,0.57901243]
[1680377008430,2.34027038,1812.8,1812.7,0.57901243]
[1680377012330,2.88452989,1812.8,1812.7,0.57901243]
[1680377012522,1.43871656,1812.8,1812.7,0.57901243]
[1680377017433,2.59449526,1812.8,1812.7,0.57901243]
[1680377018031,2.05023575,1812.8,1812.7,0.57901243]
[1680377019337,2.05023575,1812.8,1812.7,6.50005151]
[1680377019637,2.04923575,1812.8,1812.7,6.50005151]
[1680377021440,1.22323575,1812.8,1812.7,10.53485151]
[1680377021633,0.93429265,1812.8,1812.7,10.82431031]
[1680377022534,0.06745705,1812.8,1812.7,10.82431031]
[1680377022836,0.93434014,1812.8,1812.7,10.82431031]
[1680377024640,0.93433138,1812.8,1812.7,10.82431031]
[1680377026942,0.93433138,1812.8,1812.7,9.99731031]
[1680377033153,0.93433138,1812.8,1812.7,9.12883908]
[1680377033347,1.51230915,1812.8,1812.7,10.2859785]
[1680377034445,1.51228225,1812.8,1812.7,9.12883908]
[1680377035853,1.51226507,1812.8,1812.7,9.12883908]
[1680377036156,0.93433138,1812.8,1812.7,9.12883908]
[1680377036653,1.51228675,1812.8,1812.7,9.12883908]
[1680377037449,0.93433138,1812.8,1812.7,9.99650037]
[1680377054062,1.51240299,1812.8,1812.7,9.99650037]
[1680377054459,0.93433138,1812.8,1812.7,9.99650037]
[1680377055564,1.51242646,1812.8,1812.7,9.9964554]
[1680377055767,1.51242646,1812.8,1812.7,9.12883908]
[1680377057562,0.93433138,1812.8,1812.7,9.99648418]
[1680377057763,1.44533764,1812.9,1812.8,1.0]
[1680377058262,0.57813993,1812.9,1812.8,1.26796094]
[1680377058660,0.57813993,1812.9,1812.8,0.26796094]
[1680377059560,1.44533764,1812.9,1812.8,1.13546836]
[1680377059759,0.57813993,1812.9,1812.8,0.26796094]
[1680377060268,0.57813993,1812.9,1812.8,1.13536204]
[1680377060962,2.84697641,1813.0,1812.8,1.13536204]
[1680377061163,0.86719771,1812.9,1812.8,1.13536204]
[1680377061469,1.86719771,1812.9,1812.8,1.13536204]
[1680377065470,1.90125376,1812.9,1812.8,1.13536204]
[1680377066966,0.90125376,1812.9,1812.8,1.13536204]
[1680377069569,0.61232649,1812.9,1812.8,2.25074042]
[1680377069770,0.61232649,1812.9,1812.8,3.07474042]
[1680377070075,0.57827044,1812.9,1812.8,4.07474042]
[1680377070474,1.44546815,1813.0,1812.8,4.07474042]
[1680377070772,0.57827044,1813.0,1812.9,10.70157948]
[1680377070971,1.1557787,1813.2,1812.9,10.99122428]
[1680377070972,1.44546815,1813.2,1812.9,10.99122428]
[1680377071271,0.57827044,1813.2,1813.1,5.18831875]
[1680377071466,0.57827044,1813.2,1813.1,6.18831875]
[1680377071661,0.57827044,1813.2,1813.1,11.99536865]
[1680377072664,0.57827044,1813.3,1813.2,1.0]
[1680377072860,0.57827044,1813.3,1813.2,3.26419447]
[1680377073074,0.57827044,1813.3,1813.2,8.94972254]
[1680377074475,0.57827044,1813.3,1813.2,9.52738886]
[1680377075278,0.57827044,1813.4,1813.2,8.66087218]
[1680377075467,0.57827044,1813.4,1813.3,4.0348]
[1680377075665,0.57827044,1813.4,1813.3,5.0348]
[1680377075866,0.57827044,1813.4,1813.3,11.29611755]
[1680377079173,0.57827044,1813.5,1813.3,11.29611755]
[1680377079381,0.57827044,1813.5,1813.4,1.0]
[1680377079675,0.57827044,1813.5,1813.4,7.21431849]
[1680377082878,0.57827044,1813.5,1813.4,6.21431849]
[1680377083381,1.99958325,1813.6,1813.4,6.21431849]
[1680377083679,1.44546815,1813.6,1813.4,6.21431849]
[1680377085177,0.57827044,1813.6,1813.4,6.21431849]
[1680377085884,1.44546815,1813.6,1813.4,6.21431849]
[1680377087181,0.57827044,1813.6,1813.4,6.21431849]
[1680377094282,0.57827044,1813.6,1813.5,1.0]
[1680377094681,0.57827044,1813.6,1813.5,7.05409415]
[1680377095483,0.57827044,1813.6,1813.5,6.05409415]
[1680377096983,0.57827044,1813.6,1813.4,6.35420995]
[1680377097290,0.57827044,1813.6,1813.4,7.35420995]
[1680377097480,0.57827044,1813.6,1813.5,1.0]
[1680377097791,0.57827044,1813.6,1813.5,7.0315581]
[1680377097987,1.44546815,1813.6,1813.5,6.0315581]
[1680377098589,0.57827044,1813.6,1813.5,6.0315581]
[1680377098890,0.57827044,1813.6,1813.4,6.03472981]
[1680377099078,1.44546815,1813.6,1813.4,6.03472981]
[1680377099285,0.57664438,1813.5,1813.4,6.86172981]
[1680377099688,0.57664438,1813.5,1813.4,0.827]
[1680377099884,0.57664438,1813.5,1813.4,6.5892639]
[1680377100691,0.57664438,1813.5,1813.4,9.7970639]
[1680377101588,0.57664438,1813.5,1813.4,6.5892639]
[1680377106289,1.44384209,1813.5,1813.4,6.5892639]
[1680377107196,1.44384209,1813.5,1813.4,5.7622639]
[1680377107490,1.44384209,1813.5,1813.3,6.77356268]
[1680377108195,0.57664438,1813.4,1813.3,6.77356268]
[1680377108994,0.57664438,1813.4,1813.3,9.98136268]
[1680377112200,1.44384209,1813.4,1813.3,10.559029]
[1680377112389,0.86719771,1813.4,1813.3,10.559029]
[1680377112590,1.44489034,1813.4,1813.3,10.559029]
[1680377112800,1.44489056,1813.4,1813.3,10.559029]
[1680377113500,1.44489077,1813.4,1813.3,10.559029]
[1680377113698,0.86719771,1813.4,1813.3,10.559029]
[1680377116295,0.86719771,1813.4,1813.3,10.84787936]
[1680377116296,1.1557787,1813.4,1813.3,10.84787936]
[1680377122602,1.1557787,1813.4,1813.3,7.64007936]
[1680377128212,1.1557787,1813.4,1813.3,6.81307936]
[1680377128405,2.26981333,1813.4,1813.3,0.5785889]
[1680377128596,3.95372269,1813.4,1813.3,0.5785889]
[1680377128801,2.50790936,1813.4,1813.2,1.44510558]
[1680377128996,2.27384915,1813.3,1813.2,0.5785889]
[1680377129198,2.27384915,1813.3,1813.2,1.44510558]
[1680377129402,0.827,1813.3,1813.2,1.44510558]
[1680377129707,2.27384915,1813.3,1813.2,7.30412799]
[1680377129909,1.98404736,1813.3,1813.2,6.43761131]
[1680377134923,1.98404736,1813.3,1813.2,6.43306805]
[1680377137027,1.15704736,1813.3,1813.2,6.43306805]
[1680377137926,1.15704736,1813.3,1813.2,5.85902241]
[1680377139021,1.15704736,1813.3,1813.2,9.06682241]
[1680377139226,1.15704736,1813.3,1813.2,5.85902241]
[1680377147131,1.98104736,1813.3,1813.2,5.85902241]
[1680377147530,1.98104736,1813.3,1813.1,6.32116307]
[1680377147731,0.86712836,1813.2,1813.1,7.32116307]
[1680377147935,0.86712836,1813.2,1813.1,6.32116307]
[1680377156848,1.15704736,1813.2,1813.1,6.32116307]
[1680377157037,2.98404736,1813.2,1813.1,6.32116307]
[1680377157238,2.98404736,1813.2,1813.0,6.18905819]
[1680377157444,0.86708675,1813.1,1813.0,6.18905819]
[1680377157943,1.86708675,1813.1,1813.0,6.18905819]
[1680377158146,0.86708675,1813.1,1813.0,6.18905819]
[1680377160051,1.44513339,1813.1,1813.0,7.05557487]
[1680377160451,0.57804664,1813.1,1813.0,7.05557487]
[1680377160754,1.44513339,1813.1,1813.0,7.05557487]
[1680377161048,0.86708675,1813.1,1813.0,6.18905819]
[1680377162156,0.86708675,1813.1,1813.0,7.05557487]
[1680377162853,0.86708675,1813.1,1813.0,6.18905819]
[1680377167059,0.86409922,1813.1,1813.0,6.18905819]
[1680377169256,0.86409922,1813.1,1813.0,7.18905819]
[1680377169455,0.86409922,1813.1,1813.0,7.05557487]
[1680377169757,0.86409922,1813.1,1813.0,8.05557487]
[1680377173165,0.86409922,1813.1,1813.0,7.05557487]
[1680377173366,0.86409922,1813.1,1813.0,8.88057487]
[1680377173556,0.86409922,1813.1,1813.0,7.88057487]
[1680377173956,0.86409922,1813.1,1813.0,7.01405819]
[1680377174959,0.86409922,1813.1,1813.0,8.88160318]
[1680377175266,0.86409922,1813.1,1813.0,8.01405819]
[1680377175763,0.86409922,1813.1,1813.0,7.01405819]
[1680377177265,0.86409922,1813.1,1813.0,8.01405819]
[1680377178256,1.15704736,1813.2,1813.0,9.99757694]
[1680377178463,1.15704736,1813.3,1813.1,2.98351875]
[1680377178659,1.15704736,1813.3,1813.2,1.69267443]
[1680377178866,1.15704736,1813.3,1813.2,8.68019234]
[1680377179259,1.15704736,1813.4,1813.2,8.68019234]
[1680377179466,1.15704736,1813.4,1813.3,1.0]
[1680377179967,1.15704736,1813.4,1813.3,10.59840548]
[1680377180663,1.15704736,1813.4,1813.3,11.46607991]
[1680377181068,1.15704736,1813.4,1813.3,10.59840548]
[1680377181269,1.15704736,1813.5,1813.3,13.11907991]
[1680377181460,1.15704736,1813.5,1813.4,0.827]
[1680377181963,1.15704736,1813.5,1813.4,6.73453906]
[1680377183171,1.15704736,1813.6,1813.4,6.73453906]
[1680377187974,1.15704736,1813.6,1813.5,3.2078]
[1680377188272,1.69460328,1813.7,1813.5,9.23459819]
[1680377188466,1.15704736,1813.7,1813.5,9.23459819]
[1680377191475,1.15704736,1813.7,1813.5,6.02679819]
[1680377191679,1.15704736,1813.7,1813.5,9.23459819]
[1680377194677,2.15704736,1813.7,1813.5,9.23459819]
[1680377194872,1.15704736,1813.7,1813.5,9.23459819]
[1680377196980,1.98404736,1813.7,1813.5,9.23459819]
[1680377203385,1.98404736,1813.7,1813.5,6.02679819]
[1680377203680,1.98404736,1813.7,1813.4,6.11743138]
[1680377203883,1.98404736,1813.7,1813.5,3.2078]
[1680377204283,1.98404736,1813.7,1813.6,5.55440468]
[1680377204479,2.98404736,1813.7,1813.6,5.55440468]
[1680377205177,1.98404736,1813.7,1813.6,5.55440468]
[1680377205678,2.98404736,1813.7,1813.6,5.55440468]
[1680377207284,1.98404736,1813.7,1813.6,5.55440468]
[1680377212986,0.827,1813.7,1813.6,5.55440468]
[1680377213489,2.27384915,1813.7,1813.6,5.55440468]
[1680377213881,2.27384915,1813.7,1813.4,6.2308083]
[1680377214180,1.9820696,1813.6,1813.4,6.2308083]
[1680377217089,1.1550696,1813.6,1813.4,6.2308083]
[1680377220990,3.26884915,1813.7,1813.4,6.2308083]
[1680377220991,1.1550696,1813.5,1813.4,6.2308083]
[1680377221590,1.1550696,1813.6,1813.4,6.2308083]
[1680377222986,1.1550696,1813.6,1813.4,7.09848273]
[1680377222987,1.1550696,1813.5,1813.4,7.09848273]
[1680377243606,1.1550696,1813.5,1813.4,7.09152113]
[1680377244208,1.1550696,1813.5,1813.4,6.2238467]
[1680377244711,1.1550696,1813.5,1813.4,7.09193723]
[1680377244917,1.1550696,1813.5,1813.4,7.09193781]
[1680377251012,0.86793994,1813.5,1813.4,8.20736545]
[1680377251313,0.86793994,1813.5,1813.4,9.20736545]
[1680377255012,0.86793994,1813.5,1813.4,9.76015302]
[1680377260922,0.86793994,1813.5,1813.4,8.76015302]
[1680377264530,0.86793994,1813.5,1813.4,9.76015302]
[1680377266526,0.86793994,1813.5,1813.4,8.76015302]
[1680377271031,0.86793994,1813.5,1813.4,7.60363427]
[1680377271634,0.86793994,1813.5,1813.4,8.76015302]
[1680377273934,0.86793994,1813.5,1813.4,8.20736545]
[1680377274134,0.86793994,1813.5,1813.4,7.91852252]
[1680377274334,0.86793994,1813.5,1813.4,7.09152252]
[1680377274534,0.86793994,1813.5,1813.4,7.38036545]
[1680377275733,0.86793994,1813.5,1813.4,6.2238467]
[1680377276332,0.86793994,1813.5,1813.4,7.38036545]
[1680377276538,0.86793994,1813.5,1813.4,6.2238467]
[1680377277036,0.86793994,1813.5,1813.4,8.38036545]
[1680377277236,0.86793994,1813.5,1813.4,7.38036545]
[1680377281942,0.86793994,1813.5,1813.4,8.38036545]
[1680377282141,0.86793994,1813.5,1813.4,7.38036545]
[1680377284638,0.86793994,1813.5,1813.4,7.94220184]
[1680377285339,0.86793994,1813.5,1813.4,8.94220184]
[1680377285539,0.86793994,1813.5,1813.4,9.76820184]
[1680377285939,0.57824753,1813.5,1813.4,10.05810737]
[1680377288546,0.57824753,1813.5,1813.4,8.61168309]
[1680377289747,0.57824753,1813.5,1813.4,9.76845149]
[1680377291644,0.57824753,1813.5,1813.4,9.76851489]
[1680377293249,0.57824753,1813.5,1813.4,8.61168309]
[1680377293453,0.57824753,1813.5,1813.4,9.76856069]
[1680377294353,0.57824753,1813.5,1813.4,8.61168309]
[1680377294750,0.57824753,1813.5,1813.4,9.76853883]
[1680377295260,0.57824753,1813.5,1813.4,8.61168309]
[1680377295456,0.57824753,1813.5,1813.4,9.7686488]
[1680377295654,0.57824753,1813.5,1813.4,8.61168309]
[1680377295964,0.57824753,1813.5,1813.4,9.76861933]
[1680377298161,0.57824753,1813.5,1813.4,9.76859794]
[1680377299171,0.57824753,1813.5,1813.4,8.76859794]
[1680377299962,0.57824753,1813.5,1813.4,9.76859794]
[1680377300167,0.57824753,1813.5,1813.4,12.97639794]
[1680377300469,0.57824753,1813.5,1813.4,10.81948309]
[1680377301162,0.57824753,1813.5,1813.4,12.26590737]
[1680377301864,0.57824753,1813.5,1813.4,10.81948309]
[1680377308375,1.44618747,1813.6,1813.4,12.26590737]
[1680377308566,1.44618747,1813.6,1813.5,1.98272191]
[1680377308769,0.57824753,1813.6,1813.5,2.98272191]
[1680377308963,0.57824753,1813.6,1813.5,8.98022003]
[1680377309674,0.57824753,1813.6,1813.5,7.53379575]
[1680377309868,0.57824753,1813.6,1813.5,8.69022811]
[1680377310067,0.57824753,1813.6,1813.5,7.53379575]
[1680377310473,0.57824753,1813.6,1813.5,13.04779575]
[1680377311777,1.44618747,1813.7,1813.5,14.20407377]
[1680377311973,1.44618747,1813.7,1813.6,5.0318]
[1680377312372,1.44618747,1813.7,1813.6,11.36602015]
[1680377312773,1.44618747,1813.7,1813.6,12.52229817]
[1680377313281,1.44618747,1813.7,1813.6,11.36602015]
[1680377313978,1.44178764,1813.7,1813.6,11.36602015]
[1680377314572,0.57824753,1813.7,1813.6,11.36602015]
[1680377315785,0.57824753,1813.7,1813.6,12.23312416]
[1680377316578,0.57824753,1813.7,1813.6,11.36602015]
[1680377325087,0.57824753,1813.7,1813.6,10.36602015]
[1680377325687,0.57824753,1813.7,1813.6,11.23322028]
[1680377325886,0.57797467,1813.7,1813.6,10.36602015]
[1680377327982,0.57797467,1813.7,1813.6,11.52229817]
[1680377328182,0.57797467,1813.7,1813.6,10.36602015]
[1680377328589,0.57797467,1813.7,1813.6,11.52229817]
[1680377328985,0.57797467,1813.7,1813.6,10.36602015]
[1680377329495,0.57797467,1813.7,1813.6,11.52229817]
[1680377329784,0.57797467,1813.7,1813.6,10.36602015]
[1680377330989,0.57797467,1813.7,1813.6,11.52229817]
[1680377335992,0.57797467,1813.7,1813.6,9.54202015]
[1680377336196,1.0,1813.8,1813.6,9.54202015]
[1680377336401,2.1550696,1813.8,1813.7,0.57815878]
[1680377336896,2.1550696,1813.8,1813.7,6.7698065]
[1680377339593,4.10084915,1813.8,1813.5,0.86723833]
[1680377339894,1.98282336,1813.7,1813.5,0.86723833]
[1680377340096,1.0,1813.6,1813.5,0.86723833]
[1680377340502,1.0,1813.6,1813.5,1.46152861]
[1680377342798,2.98282336,1813.7,1813.5,1.46152861]
[1680377346899,1.98282336,1813.7,1813.5,1.46152861]
[1680377347206,0.827,1813.6,1813.5,1.46152861]
[1680377357121,1.98282336,1813.7,1813.5,1.46152861]
[1680377374017,0.86691063,1813.6,1813.5,1.46152861]
[1680377376724,0.86681707,1813.6,1813.5,1.46152861]
[1680377381925,1.15582336,1813.6,1813.5,0.59429028]
[1680377383323,1.98282336,1813.7,1813.5,0.59429028]
[1680377383526,1.98282336,1813.7,1813.6,0.86782925]
[1680377383827,2.27384915,1813.7,1813.6,0.86782925]
[1680377387029,2.95764019,1813.7,1813.5,1.46211953]
[1680377387322,1.98387906,1813.6,1813.5,1.46211953]
[1680377387527,2.98387906,1813.6,1813.5,1.46211953]
[1680377399735,2.98387906,1813.6,1813.5,3.80209028]
[1680377400332,2.98387906,1813.6,1813.5,1.46226661]
[1680377400732,1.98387906,1813.6,1813.5,1.46226661]
[1680377411735,0.827,1813.6,1813.5,4.9583683]
[1680377412145,1.98387906,1813.6,1813.5,4.9583683]
[1680377412742,1.98387906,1813.6,1813.5,1.46222615]
[1680377412944,1.98387906,1813.6,1813.5,0.59429028]
[1680377413335,1.98387906,1813.6,1813.5,1.46225702]
[1680377417250,1.98387906,1813.6,1813.5,0.59429028]
[1680377417548,1.98387906,1813.6,1813.5,1.46227111]
[1680377417750,1.98387906,1813.6,1813.5,0.59429028]
[1680377417946,2.80287906,1813.6,1813.5,1.46228228]
[1680377418145,0.00710515,1813.5,1813.4,0.867992]
[1680377418345,3.96363302,1813.5,1813.3,0.867992]
[1680377418543,2.98351816,1813.4,1813.3,0.867992]
[1680377419151,2.98351816,1813.4,1813.3,7.10401758]
[1680377421255,1.827,1813.4,1813.3,7.10401758]
[1680377421947,1.827,1813.4,1813.3,6.23602558]
[1680377422151,2.98351816,1813.4,1813.3,6.23602558]
[1680377422555,2.98351816,1813.4,1813.3,7.10401758]
[1680377423255,1.827,1813.4,1813.3,6.23184952]
[1680377424052,2.69351923,1813.4,1813.3,6.23184952]
[1680377424251,1.69351923,1813.4,1813.3,6.23184952]
[1680377424458,0.827,1813.4,1813.3,6.23184952]
[1680377425259,1.69336182,1813.4,1813.3,6.23184952]
[1680377427856,0.827,1813.4,1813.3,6.23184952]
[1680377428654,1.69323369,1813.4,1813.3,6.23184952]
[1680377428855,0.827,1813.4,1813.3,6.23184952]
[1680377429057,1.69323442,1813.4,1813.3,6.23184952]
[1680377429960,0.827,1813.4,1813.3,6.23184952]
[1680377430254,1.40446631,1813.4,1813.3,8.09869338]
[1680377430859,1.40446631,1813.4,1813.3,7.09869338]
[1680377432965,1.40446631,1813.4,1813.3,8.09869338]
[1680377433167,1.40446631,1813.4,1813.3,7.09869338]
[1680377433662,1.40446631,1813.4,1813.3,7.23184952]
[1680377434059,0.827,1813.4,1813.3,7.23184952]
[1680377434261,1.40446631,1813.4,1813.3,7.23184952]
[1680377435058,1.45080588,1813.5,1813.3,7.23184952]
[1680377435260,0.58457146,1813.5,1813.4,5.07463336]
[1680377435662,0.58457146,1813.5,1813.4,10.98371991]
[1680377438268,0.58457146,1813.5,1813.4,9.98371991]
[1680377455383,0.58457146,1813.5,1813.4,9.11688655]
[1680377456574,0.58457146,1813.5,1813.4,10.27316457]
[1680377456773,0.58457146,1813.5,1813.4,9.11688655]
[1680377457372,0.00710515,1813.5,1813.4,10.27316457]
[1680377459182,0.58457146,1813.5,1813.4,9.11688655]
[1680377459382,0.00710515,1813.5,1813.4,9.11688655]
[1680377459780,0.00710515,1813.5,1813.4,10.27316457]
[1680377461577,0.58457146,1813.5,1813.4,9.11688655]
[1680377461777,0.00710515,1813.5,1813.4,10.27316457]
[1680377462490,0.58457146,1813.5,1813.4,9.11688655]
[1680377462987,0.58457146,1813.5,1813.4,9.98372108]
[1680377463185,0.00710515,1813.5,1813.4,9.11688655]
[1680377463887,0.58457146,1813.5,1813.4,9.98371157]
[1680377464090,0.58457146,1813.5,1813.4,9.98370981]
[1680377464290,0.58457146,1813.5,1813.4,9.11688655]
[1680377464490,0.58457146,1813.5,1813.4,9.98370401]
[1680377465391,0.58457146,1813.5,1813.4,9.11688655]
[1680377465591,0.58457146,1813.5,1813.4,9.98372849]
[1680377465789,0.58457146,1813.5,1813.4,9.98372848]
[1680377467390,0.58457146,1813.5,1813.4,9.11688655]
[1680377467593,0.58457146,1813.5,1813.4,9.98378679]
[1680377467893,0.58457146,1813.5,1813.4,9.11688655]
[1680377469998,0.58457146,1813.5,1813.4,10.27316457]
[1680377470293,0.58457146,1813.5,1813.4,9.11688655]
[1680377471294,0.58457146,1813.5,1813.4,10.27316457]
[1680377475598,1.45080588,1813.5,1813.4,10.27316457]
[1680377475896,0.58457146,1813.5,1813.4,10.27316457]
[1680377476098,1.45080588,1813.5,1813.4,10.27316457]
[1680377477204,0.87333957,1813.5,1813.4,10.27316457]
[1680377477499,1.45127473,1813.5,1813.4,10.27316457]
[1680377479195,0.87333957,1813.5,1813.4,10.27316457]
[1680377487206,0.87333957,1813.5,1813.4,11.10016457]
[1680377487407,0.87333957,1813.5,1813.4,9.94388655]
[1680377487805,0.86665313,1813.5,1813.4,9.94388655]
[1680377488805,0.86665313,1813.5,1813.4,11.10113034]
[1680377489610,0.86665313,1813.5,1813.4,9.94388655]
[1680377490808,0.86665313,1813.5,1813.4,11.10114072]
[1680377491108,0.86665313,1813.5,1813.4,9.94388655]
[1680377492008,0.86665313,1813.5,1813.4,10.49491796]
[1680377499209,0.86665313,1813.5,1813.4,11.94134224]
[1680377503218,0.86665313,1813.5,1813.4,9.94388655]
[1680377503612,0.86665313,1813.5,1813.4,11.39031083]
[1680377504611,0.86665313,1813.5,1813.4,9.94388655]
[1680377504812,0.86665313,1813.5,1813.4,11.39031083]
[1680377505112,0.86665313,1813.5,1813.4,9.94388655]
[1680377505307,0.86665313,1813.5,1813.4,11.39031083]
[1680377505510,0.86665313,1813.5,1813.4,9.94388655]
[1680377505912,0.86665313,1813.5,1813.4,11.39031083]
[1680377506415,0.86665313,1813.5,1813.4,9.94388655]
[1680377507113,0.86665313,1813.5,1813.4,9.11688655]
[1680377519720,0.86665313,1813.5,1813.4,10.2744759]
[1680377520020,0.86665313,1813.5,1813.4,9.11688655]
[1680377520214,0.86665313,1813.5,1813.4,10.27447768]
[1680377520414,0.86665313,1813.5,1813.4,9.11688655]